bitfinex-derivatives/quotes_SOLF0:USTF0_20260310
["timestamp","ask_amount","ask_price","bid_price","bid_amount"]
[1773147849333,10.368,86.796,86.754,3.74864922]
[1773147850428,10.368,86.796,86.756,3.74864922]
[1773147852529,1.29324253,86.799,86.756,3.74864922]
[1773147853328,1.29324253,86.799,86.765,3.74864922]
[1773147853529,3.39605687,86.81,86.765,3.74864922]
[1773147853728,1.33871689,86.822,86.771,3.74864922]
[1773147853927,3.39605687,86.83,86.784,3.74864922]
[1773147854134,1.33871689,86.847,86.801,3.74864922]
[1773147855339,1.33871689,86.847,86.805,10.367]
[1773147858637,1.33871689,86.847,86.805,14.11564922]
[1773147858940,3.39605687,86.83,86.771,3.74864922]
[1773147859238,3.39605687,86.83,86.796,3.74864922]
[1773147862039,10.363,86.838,86.796,3.74864922]
[1773147862237,1.32707818,86.829,86.787,10.369]
[1773147862442,3.39605687,86.82,86.787,10.369]
[1773147863044,3.39605687,86.82,86.784,3.74864922]
[1773147865946,10.365,86.825,86.784,3.74864922]
[1773147865947,11.71212828,86.825,86.784,3.74864922]
[1773147866144,3.39605687,86.82,86.785,3.74864922]
[1773147866348,1.34712828,86.825,86.785,3.74864922]
[1773147867549,3.39605687,86.82,86.786,3.74864922]
[1773147868548,10.365,86.822,86.786,3.74864922]
[1773147870349,13.76005687,86.83,86.788,3.74864922]
[1773147871452,13.76005687,86.83,86.789,14.11764922]
[1773147872948,10.365,86.825,86.789,3.74864922]
[1773147873451,1.4063591,86.824,86.789,3.74864922]
[1773147873652,10.364,86.832,86.789,3.74864922]
[1773147873850,3.39605687,86.84,86.791,3.70066164]
[1773147874046,1.41209131,86.839,86.791,3.70066164]
[1773147874251,11.77464807,86.838,86.797,3.70066164]
[1773147874550,1.41164807,86.829,86.781,3.70066164]
[1773147876453,11.77564807,86.829,86.784,3.70066164]
[1773147876653,1.41121408,86.828,86.784,3.70066164]
[1773147877453,1.41121408,86.828,86.785,10.369]
[1773147878053,1.41121408,86.828,86.785,14.06966164]
[1773147878754,1.41121408,86.828,86.795,10.368]
[1773147878955,1.41121408,86.828,86.786,3.70066164]
[1773147879655,1.41121408,86.828,86.788,14.06966164]
[1773147879856,1.41121408,86.828,86.789,3.70066164]
[1773147882152,1.41121408,86.828,86.791,3.70066164]
[1773147882357,1.41121408,86.828,86.771,3.70066164]
[1773147882657,3.39605687,86.82,86.771,3.70066164]
[1773147883350,1.30129228,86.819,86.781,10.37]
[1773147883552,1.30129228,86.819,86.771,3.70066164]
[1773147884950,1.30129228,86.819,86.773,3.70066164]
[1773147885358,1.30129228,86.819,86.76,3.39605687]
[1773147885359,3.39605687,86.81,86.776,3.70066164]
[1773147885559,3.3970622,86.81,86.776,3.70066164]
[1773147886952,4.67130269,86.81,86.776,3.70066164]
[1773147888259,1.27617819,86.809,86.776,3.70066164]
[1773147888451,10.76329472,86.849,86.737,890.52968212]
[1773147888452,3.3970622,86.79,86.752,3.69449407]
[1773147888848,1.27617819,86.799,86.752,3.69449407]
[1773147889262,1.27617819,86.797,86.752,3.69449407]
[1773147889553,1.27617819,86.789,86.752,3.69449407]
[1773147891650,3.3970622,86.78,86.738,3.69449407]
[1773147892059,3.3970622,86.78,86.741,3.69449407]
[1773147893460,1.29998562,86.779,86.744,3.69449407]
[1773147893660,1.29998562,86.779,86.737,890.52968212]
[1773147894164,10.371,86.776,86.738,3.69449407]
[1773147894561,1.29998562,86.779,86.738,3.69449407]
[1773147895161,1.29998562,86.779,86.74,3.69449407]
[1773147896563,1.29998562,86.779,86.742,3.69449407]
[1773147899766,1.41488428,86.82,86.75,3.69449407]
[1773147900062,3.3970622,86.79,86.75,3.69449407]
[1773147900264,4.84845393,86.8,86.751,3.69449407]
[1773147900464,4.84845393,86.81,86.751,3.69449407]
[1773147901364,10.367,86.807,86.763,10.372]
[1773147901564,10.367,86.807,86.764,3.69449407]
[1773147901762,3.3970622,86.8,86.764,3.69449407]
[1773147902364,3.3970622,86.79,86.764,3.69449407]
[1773147904257,4.75497323,86.8,86.764,3.69449407]
[1773147904967,3.3970622,86.77,86.737,14.37521997]
[1773147905769,1.41956664,86.779,86.738,4.00021997]
[1773147907167,1.41956664,86.779,86.737,10.375]
[1773147907168,3.3970622,86.78,86.74,4.00021997]
[1773147907367,3.3970622,86.79,86.741,4.00021997]
[1773147907569,3.3970622,86.8,86.751,4.00021997]
[1773147907762,1.42231315,86.802,86.762,4.00021997]
[1773147909569,3.3970622,86.8,86.762,4.00021997]
[1773147912369,3.3970622,86.8,86.766,4.00021997]
[1773147913470,1.42231315,86.802,86.766,4.00021997]
[1773147913671,3.3970622,86.8,86.766,4.00021997]
[1773147914073,3.3970622,86.81,86.766,4.00021997]
[1773147914275,1.47616913,86.826,86.778,4.00021997]
[1773147914473,1.47616913,86.826,86.78,3.3970622]
[1773147914666,1.47616913,86.839,86.781,4.00021997]
[1773147914870,1.47616913,86.839,86.801,4.00021997]
[1773147915167,3.3970622,86.83,86.801,4.00021997]
[1773147915368,1.47616913,86.839,86.801,4.00021997]
[1773147915570,10.362,86.852,86.801,4.00021997]
[1773147915571,3.3970622,86.85,86.801,4.00021997]
[1773147915767,3.3970622,86.84,86.801,4.00021997]
[1773147916163,1.47616913,86.849,86.801,4.00021997]
[1773147916576,3.3970622,86.84,86.801,4.00021997]
[1773147916774,1.52567244,86.838,86.788,4.00021997]
[1773147916973,1.52567244,86.829,86.788,4.00021997]
[1773147917978,1.52567244,86.826,86.788,4.00021997]
[1773147918180,3.3970622,86.82,86.788,4.00021997]
[1773147918572,3.3970622,86.82,86.771,4.00021997]
[1773147919375,3.3970622,86.82,86.77,3.3970622]
[1773147919376,3.3970622,86.82,86.778,4.00021997]
[1773147919677,1.52567244,86.826,86.778,4.00021997]
[1773147920782,1.52567244,86.826,86.78,3.3970622]
[1773147921079,1.52567244,86.826,86.781,4.00021997]
[1773147921277,1.52567244,86.826,86.784,4.00021997]
[1773147923579,3.3970622,86.82,86.784,4.00021997]
[1773147923876,10.366,86.818,86.784,4.00021997]
[1773147924577,3.3970622,86.82,86.784,4.00021997]
[1773147924780,3.3970622,86.82,86.729,461.76351001]
[1773147924781,1.55239412,86.809,86.758,4.00021997]
[1773147924981,21.44058562,86.884,86.758,4.00021997]
[1773147924982,1.55239412,86.799,86.758,4.00021997]
[1773147925987,1.55239412,86.789,86.737,4.00021997]
[1773147926186,3.3970622,86.78,86.737,4.00021997]
[1773147927579,1.55239412,86.789,86.739,4.00021997]
[1773147927780,1.55239412,86.789,86.741,4.00021997]
[1773147928085,1.56477266,86.796,86.741,4.00021997]
[1773147929379,3.3970622,86.8,86.742,4.00021997]
[1773147930279,1.55230118,86.809,86.754,4.00021997]
[1773147930479,1.55230118,86.809,86.761,4.00021997]
[1773147931289,3.3970622,86.82,86.765,4.00021997]
[1773147931489,3.3970622,86.82,86.771,4.00021997]
[1773147934891,1.59972855,86.819,86.771,4.00021997]
[1773147935091,1.59972855,86.809,86.771,4.00021997]
[1773147935989,1.59972855,86.819,86.772,3.77958062]
[1773147937393,1.59972855,86.819,86.775,3.77958062]
[1773147938195,1.59972855,86.819,86.78,3.77958062]
[1773147938898,10.363,86.836,86.782,3.77958062]
[1773147939093,3.3970622,86.82,86.782,3.77958062]
[1773147941102,1.62922298,86.849,86.801,3.77958062]
[1773147941401,1.62922298,86.829,86.771,3.77958062]
[1773147941602,3.3970622,86.82,86.771,3.77958062]
[1773147941792,1.62922298,86.819,86.771,3.77958062]
[1773147942196,1.62922298,86.819,86.774,10.371]
[1773147942497,3.3970622,86.81,86.771,3.77958062]
[1773147943298,1.60079413,86.809,86.771,3.77958062]
[1773147944098,172.0015304,87.194,86.75,3.3970622]
[1773147944099,4.98559256,86.8,86.757,10.373]
[1773147944398,3.3970622,86.79,86.731,3.77958062]
[1773147944600,3.3970622,86.79,86.74,3.3970622]
[1773147944797,1.58853036,86.799,86.741,3.77958062]
[1773147945398,1.58853036,86.799,86.749,3.77958062]
[1773147945600,3.39887648,86.79,86.749,3.77958062]
[1773147946105,3.39887648,86.79,86.75,10.374]
[1773147946299,3.39887648,86.79,86.75,14.07556011]
[1773147946893,1.58853036,86.799,86.75,14.07556011]
[1773147947602,1.56012849,86.797,86.75,14.07556011]
[1773147947800,3.39887648,86.79,86.75,14.07556011]
[1773147948098,4.95900497,86.79,86.75,3.70156011]
[1773147948498,1.49204103,86.789,86.75,3.70156011]
[1773147949302,1.49204103,86.789,86.741,10.375]
[1773147949899,1.49204103,86.789,86.734,3.70156011]
[1773147950906,1.44782766,86.779,86.734,3.70156011]
[1773147951305,14.30031273,86.833,86.734,3.70156011]
[1773147951306,3.39887648,86.79,86.74,3.39887648]
[1773147951606,3.39887648,86.8,86.741,3.70156011]
[1773147952107,10.368,86.799,86.746,3.70156011]
[1773147952406,3.39887648,86.79,86.746,3.70156011]
[1773147952704,10.368,86.797,86.746,3.70156011]
[1773147953713,11.83133689,86.797,86.746,3.70156011]
[1773147954002,1.46333689,86.81,86.752,3.70156011]
[1773147954202,1.46333689,86.81,86.761,3.70156011]
[1773147954701,1.5700378,86.809,86.762,3.70156011]
[1773147955594,10.367,86.808,86.762,3.70156011]
[1773147956400,11.92020063,86.808,86.762,3.70156011]
[1773147958300,10.366,86.816,86.771,3.70156011]
[1773147961809,1.52838158,86.808,86.761,3.70156011]
[1773147962309,1.52904637,86.805,86.761,3.70156011]
[1773147962608,1.52904637,86.805,86.763,10.372]
[1773147963309,1.52904637,86.803,86.761,3.70156011]
[1773147964505,10.368,86.8,86.761,3.70156011]
[1773147964906,10.368,86.8,86.73,21.32926899]
[1773147964907,1.57526267,86.827,86.771,3.93591113]
[1773147965109,1.57526267,86.839,86.791,3.93591113]
[1773147965812,10.363,86.838,86.793,3.93591113]
[1773147966011,1.57526267,86.839,86.793,3.93591113]
[1773147967406,10.362,86.846,86.801,3.93591113]
[1773147967812,1.57991329,86.845,86.801,3.93591113]
[1773147969413,10.363,86.842,86.801,3.93591113]
[1773147969808,1.59062635,86.858,86.804,3.93591113]
[1773147970007,1.59062635,86.847,86.804,3.93591113]
[1773147970609,10.362,86.846,86.804,3.93591113]
[1773147970812,1.6139087,86.859,86.811,3.93591113]
[1773147971011,1.6139087,86.859,86.812,3.93591113]
[1773147971208,10.361,86.858,86.812,3.93591113]
[1773147971513,1.6139087,86.857,86.812,3.93591113]
[1773147971713,1.6139087,86.876,86.812,3.93591113]
[1773147971915,1.6139087,86.869,86.812,3.93591113]
[1773147972813,1.92649755,86.883,86.84,3.39887648]
[1773147973010,1.92649755,86.869,86.821,3.93591113]
[1773147973514,3.39887648,86.86,86.821,3.93591113]
[1773147974110,1.92649755,86.868,86.821,3.93591113]
[1773147974408,1.92649755,86.868,86.749,34.57]
[1773147974409,1.88945721,86.901,86.841,3.93591113]
[1773147974613,1.88945721,86.889,86.841,3.93591113]
[1773147975717,2.00374262,86.916,86.841,3.93591113]
[1773147975718,1.88945721,86.879,86.841,3.93591113]
[1773147976413,5.35635962,86.9,86.841,3.93591113]
[1773147976608,3.39887648,86.9,86.851,3.93591113]
[1773147976918,10.357,86.889,86.851,3.93591113]
[1773147977919,1.95748314,86.914,86.861,3.93591113]
[1773147978218,3.39887648,86.92,86.871,3.93591113]
[1773147978413,1.84284309,86.915,86.871,3.93591113]
[1773147978619,20.699,86.957,86.811,20.733]
[1773147978620,3.39887648,86.9,86.851,3.93591113]
[1773147978818,31.43616996,86.957,86.851,3.93591113]
[1773147978819,3.39887648,86.89,86.851,3.93591113]
[1773147979016,5.24171957,86.88,86.837,3.93591113]
[1773147979615,15.59971957,86.88,86.837,3.93591113]
[1773147979815,13.75687648,86.88,86.837,3.93591113]
[1773147980514,1.91702166,86.876,86.825,3.93591113]
[1773147980716,1.91702166,86.876,86.827,3.93591113]
[1773147980914,12.27602166,86.876,86.827,3.93591113]
[1773147981110,3.39887648,86.87,86.827,3.93591113]
[1773147982511,10.36,86.868,86.827,3.93591113]
[1773147982708,3.39887648,86.87,86.827,3.93591113]
[1773147983610,1.91698353,86.889,86.837,3.93591113]
[1773147983815,3.39887648,86.88,86.837,3.93591113]
[1773147984015,1.91698353,86.889,86.837,3.93591113]
[1773147984319,1.91698353,86.889,86.841,3.93591113]
[1773147984723,5.31586001,86.88,86.841,3.93591113]
[1773147985222,1.99399931,86.849,86.803,3.93591113]
[1773147985420,20.714,86.892,86.803,3.93591113]
[1773147985421,3.39887648,86.85,86.803,3.93591113]
[1773147985624,3.39887648,86.88,86.831,3.93591113]
[1773147985816,1.99399931,86.879,86.831,3.93591113]
[1773147986122,3.39887648,86.87,86.831,3.93591113]
[1773147986515,13.75987648,86.86,86.825,3.93591113]
[1773147986710,3.39887648,86.87,86.825,3.93591113]
[1773147988019,10.36,86.868,86.825,3.93591113]
[1773147988320,1.99399931,86.879,86.797,441.49691923]
[1773147988321,1.99399931,86.879,86.831,3.93591113]
[1773147988917,10.359,86.876,86.831,3.93591113]
[1773147989117,3.39887648,86.89,86.831,3.93591113]
[1773147989524,3.39887648,86.89,86.84,3.39887648]
[1773147989724,3.39887648,86.89,86.797,441.49691923]
[1773147989725,2.09073146,86.889,86.841,3.93591113]
[1773147990328,3.39887648,86.9,86.841,3.93591113]
[1773147991128,2.10257116,86.903,86.841,3.93591113]
[1773147991129,10.357,86.889,86.841,3.93591113]
[1773147992323,10.357,86.889,86.843,3.93591113]
[1773147993027,10.356,86.897,86.846,3.93591113]
[1773147993230,3.39887648,86.9,86.846,3.93591113]
[1773147994229,3.39887648,86.9,86.84,3.39887648]
[1773147994230,10.357,86.89,86.848,3.7060213]
[1773147995726,3.39887648,86.91,86.861,3.7060213]
[1773147996029,3.39887648,86.9,86.861,3.7060213]
[1773147996229,3.75880122,86.909,86.861,3.7060213]
[1773147997132,3.75880122,86.869,86.824,3.7060213]
[1773147997628,3.39887648,86.86,86.824,3.7060213]
[1773147997821,13.75987648,86.86,86.824,3.7060213]
[1773147999938,3.39887648,86.86,86.824,3.7060213]
[1773148000640,10.36,86.867,86.824,3.7060213]
[1773148001035,3.75880122,86.869,86.824,3.7060213]
[1773148001036,3.75880122,86.895,86.824,3.7060213]
[1773148001237,7.25276761,86.879,86.83,3.39887648]
[1773148001437,7.25276761,86.879,86.82,3.39887648]
[1773148001639,3.39887648,86.87,86.82,3.39887648]
[1773148001936,7.25276761,86.878,86.82,3.39887648]
[1773148002635,7.25276761,86.869,86.82,3.39887648]
[1773148003134,2.00357535,86.916,86.83,3.39887648]
[1773148003135,3.39887648,86.88,86.83,3.39887648]
[1773148003439,7.24426504,86.899,86.85,3.39887648]
[1773148003633,7.24426504,86.899,86.807,20.734]
[1773148003831,7.24426504,86.899,86.84,3.39887648]
[1773148005043,7.24426504,86.889,86.843,10.362]
[1773148006042,3.39109316,86.88,86.833,10.364]
[1773148006238,7.1863234,86.879,86.833,10.364]
[1773148006845,7.18632336,86.869,86.824,10.365]
[1773148012742,7.17259453,86.859,86.8,3.39109316]
[1773148012948,7.17259453,86.849,86.797,441.49691923]
[1773148013148,10.56368769,86.84,86.797,441.49691923]
[1773148013545,7.17508067,86.839,86.797,441.49691923]
[1773148013947,7.17508067,86.839,86.8,10.368]
[1773148014553,7.17508067,86.839,86.797,441.49691923]
[1773148014948,7.17508067,86.829,86.797,441.49691923]
[1773148015153,7.17889921,86.827,86.77,3.39109316]
[1773148016048,7.17889921,86.827,86.784,10.37]
[1773148016449,7.17889921,86.827,86.792,10.369]
[1773148017247,7.17889921,86.827,86.761,21.32926899]
[1773148017248,7.17889921,86.827,86.77,3.39109316]
[1773148018343,7.17889921,86.827,86.783,10.37]
[1773148019549,7.17889921,86.827,86.79,10.369]
[1773148020253,10.363,86.836,86.79,10.369]
[1773148020456,7.24063073,86.841,86.8,3.39109316]
[1773148021251,7.24063073,86.841,86.801,10.367]
[1773148021451,7.24063073,86.841,86.81,3.39109316]
[1773148021950,7.24063073,86.841,86.766,21.32926899]
[1773148021951,7.24063073,86.841,86.8,3.39109316]
[1773148022654,7.24063073,86.841,86.803,10.367]
[1773148023251,7.24063073,86.841,86.8,3.39109316]
[1773148024560,7.24063073,86.841,86.802,10.367]
[1773148027862,7.24063073,86.841,86.809,10.367]
[1773148028361,7.24063073,86.841,86.748,34.54]
[1773148028362,7.2495839,86.868,86.822,10.365]
[1773148028956,17.6095839,86.861,86.82,3.39109316]
[1773148029154,7.2495839,86.86,86.815,10.366]
[1773148031661,7.21582587,86.859,86.815,10.366]
[1773148034267,7.20564947,86.855,86.806,10.367]
[1773148037172,7.20564947,86.855,86.812,10.366]
[1773148038268,7.13274907,86.868,86.82,3.39109316]
[1773148038569,7.13274907,86.881,86.84,3.39109316]
[1773148038769,7.13274907,86.881,86.83,3.39109316]
[1773148038970,7.13274907,86.881,86.84,10.363]
[1773148039465,7.13328106,86.879,86.83,3.39109316]
[1773148039662,7.13328106,86.879,86.82,3.39109316]
[1773148040072,7.13328106,86.862,86.816,10.366]
[1773148042573,7.11948104,86.86,86.81,3.39109316]
[1773148042770,7.11948104,86.86,86.82,3.39109316]
[1773148045562,7.11948104,86.86,86.821,10.365]
[1773148047066,7.11948104,86.86,86.82,3.39109316]
[1773148047262,7.11948104,86.86,86.812,10.366]
[1773148047462,7.11948104,86.86,86.82,3.39109316]
[1773148048666,7.12259596,86.859,86.811,10.366]
[1773148051475,17.48359596,86.859,86.811,10.366]
[1773148051869,7.14994043,86.875,86.83,3.39109316]
[1773148052076,7.14994043,86.868,86.82,3.39109316]
[1773148053376,7.14994043,86.868,86.825,10.365]
[1773148053778,7.14994043,86.868,86.83,3.39109316]
[1773148056379,7.14994043,86.868,86.825,10.365]
[1773148060684,7.14994043,86.868,86.831,10.364]
[1773148061587,7.14994043,86.868,86.824,10.365]
[1773148064586,7.10270082,86.879,86.82,3.39109316]
[1773148065586,7.10270082,86.879,86.82,3.39238548]
[1773148065987,10.73393251,86.91,86.822,10.365]
[1773148065988,7.10271921,86.869,86.822,10.365]
[1773148066484,13.75138548,86.87,86.822,10.365]
[1773148066485,7.10270344,86.867,86.822,10.365]
[1773148067394,7.08467082,86.862,86.814,10.366]
[1773148067784,7.08467082,86.862,86.81,3.39238548]
[1773148068187,7.08467082,86.879,86.82,3.39238548]
[1773148068390,7.08467082,86.879,86.83,3.39238548]
[1773148069392,7.08467082,86.879,86.835,10.363]
[1773148070297,0.07256472,86.866,86.842,10.363]
[1773148070688,0.07256472,86.866,86.83,3.39238548]
[1773148071094,0.07256472,86.866,86.82,3.39238548]
[1773148071494,0.07256472,86.866,86.826,10.365]
[1773148071689,7.1229059,86.869,86.826,10.365]
[1773148073493,7.1229059,86.869,86.832,10.364]
[1773148077299,7.1229059,86.869,86.826,10.365]
[1773148077889,7.1229059,86.869,86.762,35.99422855]
[1773148077890,7.17604202,86.922,86.86,3.39238548]
[1773148078094,7.17604202,86.922,86.806,34.54]
[1773148078095,7.17604202,86.922,86.87,3.39238548]
[1773148079193,10.353,86.92,86.87,13.75138548]
[1773148081199,0.07265154,86.9,86.87,13.75138548]
[1773148081392,0.00043358,86.912,86.89,3.39238548]
[1773148081589,0.00043358,86.912,86.9,3.39238548]
[1773148081894,7.19202248,86.95,86.9,3.39238548]
[1773148082094,7.19202248,86.95,86.829,161.227]
[1773148082095,7.19202248,86.95,86.92,3.39238548]
[1773148082399,7.19202248,86.95,86.91,3.39238548]
[1773148082700,7.19202248,86.949,86.89,3.39238548]
[1773148083999,7.19202248,86.949,86.85,20.724]
[1773148084000,7.19961727,86.941,86.9,3.39238548]
[1773148085098,7.19961727,86.941,86.9,13.74838548]
[1773148086698,7.19961727,86.941,86.912,0.07317859]
[1773148087602,7.18738274,86.954,86.912,0.07317859]
[1773148087898,7.18738274,86.954,86.92,3.39238548]
[1773148088101,7.18738274,86.954,86.912,0.07317859]
[1773148088102,7.18738274,86.968,86.93,3.39238548]
[1773148088494,0.00023498,86.951,86.93,3.39238548]
[1773148088892,7.18738274,86.982,86.94,3.39238548]
[1773148089897,7.18738274,86.982,86.943,10.351]
[1773148090301,7.18738274,86.982,86.94,3.39238548]
[1773148090503,7.18738274,86.982,86.93,3.39238548]
[1773148091304,7.18738274,86.982,86.947,0.07289421]
[1773148097305,11.84338683,86.987,86.96,3.39238548]
[1773148097510,11.84338683,86.987,86.95,3.39238548]
[1773148098105,11.84338683,86.987,86.96,3.39238548]
[1773148098106,0.00038683,86.987,86.96,3.39238548]
[1773148098304,7.16954182,87.023,86.97,3.39238548]
[1773148098806,10.34,87.035,86.99,3.39238548]
[1773148099011,7.16954182,87.038,86.99,3.39238548]
[1773148099206,3.39238548,87.02,86.97,3.39238548]
[1773148099403,7.16954182,87.029,86.97,3.39238548]
[1773148099808,7.16954182,87.029,86.99,3.39238548]
[1773148100114,7.17198211,87.045,86.99,3.39238548]
[1773148100316,7.17198211,87.045,86.917,161.064]
[1773148100317,7.17198211,87.045,86.991,10.345]
[1773148100515,3.39238548,87.04,86.991,10.345]
[1773148101313,7.17198211,87.04,86.991,10.345]
[1773148101715,10.56436759,87.04,86.991,10.345]
[1773148102114,7.17198211,87.04,86.991,10.345]
[1773148102312,10.56436759,87.04,86.991,10.345]
[1773148102814,7.17198211,87.04,86.991,10.345]
[1773148103514,7.17198211,87.04,86.99,3.39238548]
[1773148103515,7.17198211,87.04,86.998,10.344]
[1773148103715,7.17198211,87.04,86.897,20.91188879]
[1773148103716,3.39238548,87.08,87.02,3.39238548]
[1773148103911,486.9224103,87.133,87.03,3.39238548]
[1773148103912,7.2407754,87.079,87.03,3.39238548]
[1773148104212,7.2407754,87.079,86.995,20.689]
[1773148104410,7.2407754,87.079,87.02,3.39238548]
[1773148104612,7.2407754,87.069,87.02,3.39238548]
[1773148104818,7.2407754,87.049,87.0,3.39238548]
[1773148105310,7.2407754,87.049,86.969,20.695]
[1773148105311,7.23619512,87.053,86.953,5.0]
[1773148105507,3.39238548,87.05,87.0,3.39238548]
[1773148105714,10.6285806,87.05,87.016,0.07240986]
[1773148105913,7.23619512,87.05,87.016,0.07240986]
[1773148106309,7.19999019,87.039,86.99,3.39238548]
[1773148107111,7.19999019,87.039,86.944,5.0]
[1773148107112,7.19999019,87.039,86.98,3.39238548]
[1773148107317,1.9997644,87.08,86.98,13.73838548]
[1773148107318,3.39238548,87.03,86.98,13.73838548]
[1773148107522,7.20111408,87.029,86.98,13.73838548]
[1773148108017,7.20111408,87.029,86.99,3.39238548]
[1773148108218,7.20111408,87.029,86.98,3.39238548]
[1773148109017,7.20111408,87.029,86.97,13.73938548]
[1773148109917,7.20111408,87.029,86.97,10.347]
[1773148110118,7.20111408,87.029,86.97,13.73938548]
[1773148110514,3.39238548,87.02,86.97,13.73938548]
[1773148110718,7.17046148,87.019,86.97,13.73938548]
[1773148111212,7.17046148,87.019,86.98,3.39238548]
[1773148111413,7.17137662,87.034,86.99,3.39238548]
[1773148112614,7.17137662,87.049,87.0,3.39238548]
[1773148113318,7.17137662,87.049,87.003,10.343]
[1773148114014,7.17137662,87.049,87.011,10.342]
[1773148114214,7.17137662,87.049,86.957,20.698]
[1773148114413,7.19899062,87.039,86.984,10.346]
[1773148115118,7.19899062,87.029,86.97,3.39238548]
[1773148115619,7.19899062,87.029,86.98,3.39238548]
[1773148117621,7.18239667,87.028,86.984,10.346]
[1773148119018,3.39238548,87.02,86.97,3.39238548]
[1773148119223,7.18239667,87.019,86.97,3.39238548]
[1773148119620,7.18239667,87.019,86.972,10.347]
[1773148121115,7.18239667,87.019,86.98,3.39238548]
[1773148121318,7.18239667,87.019,86.972,10.347]
[1773148122420,7.18239667,87.019,86.978,10.346]
[1773148123421,7.18239667,87.019,86.99,3.39238548]
[1773148124224,7.18239667,87.019,86.98,3.39238548]
[1773148124827,7.18239667,87.019,86.97,3.39238548]
[1773148125524,7.18967483,87.018,86.96,3.39238548]
[1773148125723,7.18967483,87.018,86.96,3.38183542]
[1773148126126,7.18967483,87.015,86.966,10.348]
[1773148126427,7.18967483,87.015,86.97,3.38183542]
[1773148126928,7.18967483,87.015,86.972,10.347]
[1773148127124,7.18967483,87.015,86.97,3.38183542]
[1773148127928,7.1869597,86.999,86.94,3.38183542]
[1773148128727,7.1869597,86.995,86.941,10.351]
[1773148129927,7.16436208,86.989,86.941,10.351]
[1773148130128,7.16436208,86.987,86.933,10.352]
[1773148130529,7.16436208,86.987,86.93,3.38183542]
[1773148130725,7.16436208,86.987,86.941,10.351]
[1773148131927,7.16436208,86.987,86.96,3.38183542]
[1773148132132,7.14710472,87.019,86.96,3.38183542]
[1773148132428,10.342,87.018,86.97,3.38183542]
[1773148132624,7.14710472,87.017,86.97,3.38183542]
[1773148132830,7.14710472,87.017,86.96,3.38183542]
[1773148133026,7.14710472,87.008,86.96,3.38183542]
[1773148134328,7.14710472,87.008,86.964,10.348]
[1773148134528,7.14710472,87.008,86.97,3.38183542]
[1773148135630,7.14710472,87.008,86.935,20.703]
[1773148135831,7.14710472,87.008,86.98,3.38183542]
[1773148136029,7.14710472,87.008,86.97,3.38183542]
[1773148136826,7.14710472,87.008,86.972,10.347]
[1773148138333,7.14710472,87.008,86.97,3.38183542]
[1773148139831,7.12891023,87.006,86.96,13.72983542]
[1773148140331,8.42881571,87.047,86.89,28.39708061]
[1773148140332,7.12891023,86.99,86.913,20.91188879]
[1773148140531,7.12891023,86.99,86.865,177.0]
[1773148140532,7.12891023,86.979,86.92,3.38183542]
[1773148140734,7.12891023,86.979,86.867,34.54]
[1773148140735,7.12891023,86.979,86.93,3.38183542]
[1773148141935,7.1447137,86.978,86.93,3.38183542]
[1773148142135,7.1447137,86.978,86.92,3.38183542]
[1773148143434,7.1973389,86.976,86.922,10.353]
[1773148143636,7.1973389,86.976,86.93,3.38183542]
[1773148145941,7.1973389,86.976,86.93,13.73383542]
[1773148146235,7.1973389,86.976,86.93,3.38183542]
[1773148147440,7.1973389,86.976,86.936,10.351]
[1773148147936,7.20171127,86.968,86.92,3.38183542]
[1773148148539,7.20171127,86.968,86.93,3.38183542]
[1773148149041,7.20171127,86.968,86.938,10.351]
[1773148149238,7.20171127,86.968,86.93,3.38183542]
[1773148149438,7.20171127,86.968,86.893,20.713]
[1773148149439,7.20171127,86.968,86.92,3.38183542]
[1773148149846,7.20171127,86.968,86.922,10.353]
[1773148150146,7.20171127,86.968,86.93,3.38183542]
[1773148152551,7.20171127,86.968,86.932,10.352]
[1773148154447,7.20171127,86.968,86.93,3.38183542]
[1773148155344,7.20171127,86.968,86.931,10.352]
[1773148155845,7.20171127,86.968,86.93,3.38183542]
[1773148156042,7.20171127,86.968,86.93,13.73383542]
[1773148156742,10.52443248,87.016,86.874,467.33689427]
[1773148156743,7.26890358,86.964,86.91,3.38183542]
[1773148157351,7.27309918,86.953,86.912,10.354]
[1773148157851,7.27309918,86.951,86.905,10.355]
[1773148158553,7.27309918,86.949,86.911,10.354]
[1773148159047,7.27309918,86.949,86.91,3.38183542]
[1773148159048,7.27309918,86.949,86.917,10.354]
[1773148160549,7.27309918,86.949,86.91,13.73583542]
[1773148160750,7.27309918,86.949,86.92,3.38183542]
[1773148160956,7.26683768,86.979,86.92,3.38183542]
[1773148162055,7.31626932,86.966,86.93,3.38183542]
[1773148164257,7.31626932,86.966,86.94,3.38183542]
[1773148165652,7.30217498,86.983,86.94,3.38183542]
[1773148166860,7.30217498,86.983,86.95,3.38183542]